Cogmind - Beta 16 @@@ ROGUE MODE // 2025.11.18 @ 21:31:05 Player: tthaar Result: Destroyed by Y-45 Defender with Heavy Assault Rifle Performance ------------- Evolutions (1) 500 Regions Visited (2) 400 Robots Destroyed (14) 70 Value Destroyed (238) 238 Prototype IDs (0) 0 Alien Tech Used (0) 0 Bonus (0) 0 TOTAL SCORE: 1208 Bonus ------- None Cogmind --------- Core Integrity 0/400 Matter 265/300 Energy 72/100 System Corruption 12% Temperature Cool (88) Movement Core (50) Location -9/Materials Parts ------- > --- POWER (1) -------- (None) > --- PROPULSION (3) --- (None) > --- UTILITY (3) ------ (None) > --- WEAPON (2) ------- EM Pulse Gun Small Laser > --- INVENTORY (5) ---- Light Ion Engine Light Armor Plating Rocket Launcher Peak State ------------ > --- POWER ------------ Ion Engine > --- PROPULSION ------- Compact Wheel Compact Wheel Armored Wheel > --- UTILITY ---------- Small Storage Unit Improved Terrain Scanner Seismic Detector > --- WEAPON ----------- Small Laser Assault Rifle > --- INVENTORY -------- Light Ion Engine Improved Terrain Scanner EM Pulse Gun Small Laser Light Assault Rifle Rocket Launcher Mining Laser [Rating: 13] Favorites ----------- Power Ion Engine Engine Ion Engine Propulsion Compact Wheel Wheel Compact Wheel Hover Unit Hover Unit Utility Small Storage Unit Device Seismic Detector Storage Small Storage Unit Weapon Assault Rifle Energy Gun Small Laser Ballistic Gun Assault Rifle Special Weapon Mining Laser Build | -11 -10 -9 ------- Run | Yrd Mat Mat Slots Evolved 2 | . . 2 Power . | . . . Propulsion 1 | . . 1 Utility 1 | . . 1 Weapon . | . . . Parts Attached 19 | 7 6 6 Power 2 | 1 1 . Engine 2 | 1 1 . Core . | . . . Reactor . | . . . Propulsion 5 | 2 2 1 Treads . | . . . Leg . | . . . Wheel 3 | 2 . 1 Hover 2 | . 2 . Flight . | . . . Utility 4 | 2 . 2 Device 3 | 1 . 2 Storage 1 | 1 . . Processor . | . . . Hackware . | . . . Protection . | . . . Artifact . | . . . Weapon 8 | 2 3 3 Energy Gun 4 | 1 2 1 Energy Cannon . | . . . Ballistic Gun 2 | 1 . 1 Ballistic Cannon . | . . . Launcher . | . . . Special Weapon 2 | . 1 1 Impact Weapon . | . . . Slashing Weapon . | . . . Piercing Weapon . | . . . Special Melee Weapon . | . . . Unidentified Prototypes . | . . . Parts Lost 15 | . 4 11 Power 2 | . 1 1 Propulsion 5 | . 2 3 Utility 3 | . . 3 Weapon 5 | . 1 4 Highest Loss Streak 7 | . 4 7 To Critical Strikes . | . . . Average Backups 5 | 2 5 6 Power . | . . . Propulsion . | 1 1 . Utility 1 | . 1 1 Weapon 3 | . 3 4 Tool/Special . | . . . Unused Backups 6 | . 2 4 Power 1 | . . 1 Propulsion 2 | . 2 . Utility 1 | . . 1 Weapon 2 | . . 2 Tool/Special . | . . . Average Slot Usage (%) 90 | . 97 84 Engine 11 | . 12 9 Wheel 22 | . 20 23 Hover 3 | . 7 . Device 16 | . 14 19 Storage 12 | . 14 10 Energy Gun 9 | . 10 8 Ballistic Gun 12 | . 14 10 Special Weapon 2 | . 2 2 Peak Build Rating 13 | 7 8 13 Average Rating 8 | 5 6 10 On Entrance 5 | . 7 8 Avg Prop Armor Cover (%) . | . . . Naked Turns . | . . . Heaviest Build 15 | 15 15 15 Greatest Support 44 | 32 32 44 Greatest Overweight (x) 4 | 4 2 4 Average Overweight (x) . | . . . Largest Inventory Capacity 8 | 8 8 8 Average Capacity 7 | 7 8 7 Most Carried 8 | 6 8 8 Average Carried 5 | 2 5 6 Final Capacity 8 | 8 8 5 Final Carried 6 | 6 6 3 Class Distribution -------------------- 100% | Mutant Dominant Class ---------------- Mutant | -10/Materials Mutant | -9/Materials Resources | -11 -10 -9 ----------- Run | Yrd Mat Mat Matter Collected 515 | 263 160 92 Remotely . | . . . Salvage Created 372 | 10 174 188 Parts 35 | 4 17 14 Haulers Intercepted . | . . . Recyclers Shooed 1 | . 1 . Parts Field Recycled . | . . . Retrieved Matter . | . . . Parts Self-Destructed . | . . . Prevented . | . . . Parts Restored . | . . . Kills | -11 -10 -9 ------- Run | Yrd Mat Mat Combat Hostiles Destroyed 10 | . 1 9 Guns 8 | . 1 7 Cannons 2 | . . 2 Classes Destroyed 6 | 1 3 2 Worker 1 | . 1 . Tunneler 2 | 1 1 . Recycler 1 | . 1 . Swarmer 6 | . . 6 Grunt 3 | . 1 2 Sentry 1 | . . 1 Best Kill Streak 3 | 1 2 3 Combat Bots Only 3 | . 1 3 Max Kills in Single Turn 1 | 1 1 1 Gunslinging . | . . . Exploded . | . . . Melee . | . . . Uniques/NPCs Destroyed . | . . . Combat | -11 -10 -9 -------- Run | Yrd Mat Mat Hostile Shots Fired 106 | . 3 103 Missed 21 | . . 21 Hits 85 | . 3 82 Projectile 85 | . 3 82 Critical Strikes 3 | . . 3 Damage Taken 1659 | . 363 1296 Core 481 | . 69 412 Absorbed by Shields . | . . . Core Remaining (%) 86 | 100 72 . Volleys Fired 56 | 1 23 32 Largest 2 | 2 2 2 Hottest 120 | 60 100 120 Shots Fired 88 | 2 38 48 Gun 70 | 2 30 38 Cannon . | . . . Launcher . | . . . Special 18 | . 8 10 Kinetic 34 | 1 15 18 Thermal 43 | . 14 29 Explosive . | . . . Electromagnetic 11 | 1 9 1 Robot Hit Streak 8 | 1 5 8 Robot Miss Streak 6 | 1 6 3 Penetration Max . | . . . Secondary Targets 2 | . . 2 Max Gunslinging Chain 1 | . . 1 Shots Hit Robots 46 | 1 14 31 Core Hits 21 | 1 6 14 Critical Kills . | . . . Critical Parts Destroyed . | . . . Critical Strikes . | . . . Melee Attacks . | . . . Impact . | . . . Slashing . | . . . Piercing . | . . . Sneak Attacks . | . . . Combat Hostiles . | . . . Follow-up Attacks . | . . . Damage Inflicted 686 | 10 265 411 Guns 563 | 10 190 363 Cannons . | . . . Explosions 24 | . 24 . Melee . | . . . Ramming 51 | . 51 . Kinetic 249 | 10 88 151 Thermal 297 | . 48 249 Explosive . | . . . Electromagnetic 89 | . 78 11 Impact . | . . . Slashing . | . . . Piercing . | . . . Highest Corruption 18 | . 18 12 Average Corruption 13 | . 13 12 Corruption Purged . | . . . Corruption Blocked . | . . . Effects 12 | . 8 4 Message Errors 1 | . 1 . Matter Fused 4 | . 3 1 Heat Flow Errors 1 | . . 1 Energy Discharges 3 | . 2 1 Parts Rejected 1 | . . 1 Data Loss (minor) 1 | . 1 . Misfires 1 | . 1 . Overload Shots . | . . . Overflow Damage 12 | . 12 . Projectiles . | . . . Explosions 12 | . 12 . Melee . | . . . Knockbacks . | . . . Impact . | . . . Kinetic . | . . . Secondary . | . . . Self-Inflicted Damage 24 | . 24 . Shots . | . . . Rammed 6 | . 6 . Targets Rammed 6 | . 6 . Kicked . | . . . Crushed . | . . . Highest Temperature 207 | . 112 207 Average Temperature 55 | . 41 65 Received Heat Transfer 288 | . 18 270 Siege Activations . | . . . Martial Activations . | . . . Shielding Activations . | . . . Robots Disrupted . | . . . Combat Hostiles . | . . . Robots Corrupted . | . . . Combat Hostiles . | . . . Parts Fried . | . . . Impact Corruptions . | . . . Robots Melted . | . . . Combat Hostiles . | . . . Parts Melted . | . . . Heat Transferred 650 | . 100 550 Parts Sabotaged . | . . . Parts Stolen . | . . . Parts Stripped . | . . . Power Chain Reactions 1 | . 1 . Alert | -11 -10 -9 ------- Run | Yrd Mat Mat Maximum Alert Level . | . . . Low Security (%) 100 | 100 100 100 Level 1 . | . . . Level 2 . | . . . Level 3 . | . . . Level 4 . | . . . Level 5 . | . . . High Security . | . . . Max Security . | . . . Peak Influence 61 | 5 42 61 Initial . | . . . Average 11 | . 8 16 Influence Increases 331 | 5 90 236 Destroy 0b10 Robot/C 200 | . 20 180 Destroy 0b10 Robot/NC 20 | 5 15 . Destroy Leader 40 | . . 40 Successful Hack 44 | . 32 12 Disable Machine 15 | . 15 . Destroy Structure 12 | . 8 4 Influence Decreases 329 | 5 90 234 Time Decay 235 | 5 87 143 Lost Part 94 | . 3 91 Squads Dispatched 2 | . 1 1 Investigation . | . . . Extermination . | . . . Reinforcement 2 | . 1 1 Assault . | . . . Garrison . | . . . Intercept . | . . . Searches Triggered . | . . . Construction Impeded . | . . . Haulers Reinforced . | . . . Active Scanning Responses . | . . . Cargo Convoy Interrupts . | . . . Stealth | -11 -10 -9 --------- Run | Yrd Mat Mat Distress Signals 1 | . 1 . Communications Jammed . | . . . Distress Signals . | . . . Times Spotted 16 | . 2 14 Peak Tracking Total 5 | . 2 5 Tactical Retreats . | . . . Traps | -11 -10 -9 ------- Run | Yrd Mat Mat Traps Triggered . | . . . Indirectly . | . . . Trap Hack Attempts . | . . . Triggered . | . . . Disarmed . | . . . Reprogrammed . | . . . Reused . | . . . Traps Extracted . | . . . Installed . | . . . Triggered . | . . . Machines | -11 -10 -9 ---------- Run | Yrd Mat Mat Machines Disabled 1 | . 1 . Max in Single Turn 1 | . 1 . Machines Repaired . | . . . Machines Dismantled . | . . . Machines Sabotaged . | . . . Overloaded Fab Kills . | . . . Hacking | -11 -10 -9 --------- Run | Yrd Mat Mat Machines Accessed 7 | . 4 3 Terminals 4 | . 3 1 Fabricators . | . . . Repair Stations . | . . . Recycling Units 2 | . 1 1 Scanalyzers 1 | . . 1 Garrison Access . | . . . Total Hacks 23 | . 14 9 Successful 8 | . 5 3 Failed 14 | . 9 5 Catastrophic 4 | . 4 . Database Lockouts 1 | . . 1 Manual 6 | . 6 . Terminals 12 | . 10 2 Fabricators . | . . . Repair Stations . | . . . Recycling Units 6 | . 4 2 Scanalyzers 5 | . . 5 Garrison Access . | . . . Terminal Hacks 4 | . 4 . Branch Access Points 1 | . 1 . Locate Traps 1 | . 1 . Maintenance Status 1 | . 1 . Registered Components 1 | . 1 . Fabricator Hacks . | . . . Repair Station Hacks . | . . . Recycling Unit Hacks 1 | . 1 . Retrieve Matter 1 | . 1 . Scanalyzer 3 | . . 3 Retrieve Study 3 | . . 3 Garrison Access Hacks . | . . . Unauthorized Hacks . | . . . Terminals . | . . . Fabricators . | . . . Repair Stations . | . . . Recycling Units . | . . . Scanalyzers . | . . . Garrison Access . | . . . Data Cores Recovered . | . . . Used . | . . . Hacking Detections 7 | . 4 3 Full Trace Events . | . . . Feedback Events . | . . . Feedback Blocked . | . . . Robot Schematics Acquired . | . . . Robots Built . | . . . Authchips . | . . . Time . | . . . Total Robot Build Rating . | . . . Part Schematics Acquired . | . . . Parts Built . | . . . Authchips . | . . . Time . | . . . Total Part Build Rating . | . . . Part Studies Acquired 3 | . . 3 Parts Repaired . | . . . Time . | . . . Parts Recycled . | . . . Recycled Matter . | . . . Retrieved Matter . | . . . Retrieved Components . | . . . Parts Scanalyzed . | . . . Part Schematics Acquired . | . . . Parts Damaged . | . . . Bothacking | -11 -10 -9 ------------ Run | Yrd Mat Mat Used RIF Installer . | . . . Robots Hacked . | . . . Non-combat . | . . . Combat . | . . . Robot Hacks Applied . | . . . Relay Couplers Released . | . . . Fabnet Peak Effective % . | . . . Robots Rewired . | . . . Allies Hacked . | . . . Hacks Repelled . | . . . Allies | -11 -10 -9 -------- Run | Yrd Mat Mat Total Allies . | . . . Largest Group . | . . . Highest-Rated Group . | . . . Highest-Rated Ally . | . . . Total Orders . | . . . Ally Attacks . | . . . Total Damage . | . . . Kills . | . . . Allies Corrupted . | . . . Allies Melted . | . . . Intel | -11 -10 -9 ------- Run | Yrd Mat Mat Active Infowar (turns) 789 | 35 371 383 Terrain 331 | . . 331 Seismic 789 | 35 371 383 Robot Analysis Total . | . . . Derelict Logs Recovered . | . . . Drone Launches . | . . . Drone Recoveries . | . . . Exploration | -11 -10 -9 ------------- Run | Yrd Mat Mat Turns Passed 869 | 91 371 407 Spaces Moved 552 | 57 305 190 Core 39 | 15 1 23 Treads . | . . . Legs . | . . . Wheels 421 | 42 212 167 Hover 92 | . 92 . Flight . | . . . Fastest Speed 50 | 50 56 96 Average Speed 100 | 126 87 114 Slowest Speed 250 | 250 185 250 Overloaded Moves . | . . . Propulsion Burnouts . | . . . Robots Hopped . | . . . Potential Cave-ins 5 | . 5 . Cave-ins Triggered 3 | . 2 1 Exploration Rate (%) 12 | 4 24 10 Regions Visited 2 Branch Regions . Pre-discovered Areas . | . . . Known Exits Taken . | . . . Unknown Exits Taken 2 | 1 1 . Scrap Searched . | . . . Spaces Dug 12 | . 7 5 Terrain Destroyed 18 | . 12 6 Melee . | . . . Projectile 14 | . 8 6 AOE 4 | . 4 . Terrain Rammed . | . . . Walls Destroyed . | . . . Machines Disabled . | . . . Actions | -11 -10 -9 --------- Run | Yrd Mat Mat Total 733 | 70 353 310 Wait 72 | . 2 70 Move 549 | 56 303 190 Hop . | . . . Pick Up 17 | 6 6 5 Fast Attach 8 | 7 1 . Attach 10 | . 3 7 Detach . | . . . Swap 10 | . 5 5 Drop 4 | . 3 1 Fire 56 | 1 23 32 Melee . | . . . Ram 6 | . 6 . Kick . | . . . Crush . | . . . Escape Stasis 1 | . 1 . Rewire . | . . . Trap . | . . . Miscellaneous . | . . . Route ------- -11/Scrapyard -10/Materials (discovered 3 exits: *Mat / Min x2) -9/Materials History --------- Turn | Location | Event 24 | -11/Scrapyard | Discovered new exit (range 16) 92 | -11/Scrapyard | Entered Materials 230 | -10/Materials | Identified exit to Mines 231 | -10/Materials | Discovered new exit (range 9) 282 | -10/Materials | Crushed by falling debris 282 | -10/Materials | System corruption reached 10% 289 | -10/Materials | Crushed by falling debris 308 | -10/Materials | Build established: Mutant 313 | -10/Materials | Lost 4 parts (1p2n1w) 463 | -10/Materials | Entered another Materials area 463 | -9/Materials | Evolved 2 slots: Propulsion x1, Utility x1 476 | -9/Materials | Central database locked down 760 | -9/Materials | Crushed by falling debris 760 | -9/Materials | System corruption reached 10% 791 | -9/Materials | Lost 4 parts (3n1u) 832 | -9/Materials | Core integrity fell below 50% 854 | -9/Materials | Core integrity fell below 20% 870 | -9/Materials | Destroyed by Y-45 Defender with Heavy Assault Rifle Last Messages --------------- Defender. 00834_ K-01 Serf collects debris. 00836_ Assault Rifle+ destroyed. 00836_ S-10 Pest destroyed. 00837_ K-01 Serf collects debris. 00838_ System corrupted: Heat flow error (+213). 00838_ K-01 Serf collects debris. 00843_ Sml. Laser+ destroyed. 00844_ Sml. Storage Unit destroyed. 00844_ K-01 Serf collects debris. 00846_ Seismic Detector destroyed. 00849_ Y-45 Defender destroyed. 00849_ K-01 Serf collects debris. 00854_ System corrupted: Matter fused (-9). 00854_ S-10 Pest destroyed. 00855_ Lgt. Assault Rifle destroyed. 00857_ K-01 Serf collects debris. 00864_ Critical hit (Burn: +37). 00864_ K-01 Serf collects debris. 00870_ Critical hit (Burn: +37). Map ----- +----------------------------------------------------+ | #???????#?#?# """ #???##???????????????????????? | | #???######### "T" ##?????????#? ???????????????? | | #??## + ####???????? ????????????????? | | #???# # = " #??#???#??????????????????? | | #???# # ####?#???????????????????????? | | #???# ##############????#?#????#???????????? | | #???# ? ??????????????????? | | ##### ^ ?? ??????????????????? | | """ % ? ????#?????????????? | | #####+##### """ ?? ? ???#?? ?????????? | | ??# ## ^""" % ? ???????????????????? | | ??# """ ## """ ########??? ?? ??#?????????????? | | #?# Y" ##= #########? #???????????????????? | | ??# """ ## # "T" #? #???????#? ?????????? | | ??# + + #? #???? ???#?+????????? | | ??# ####### ## ## #?#? ???????????????? | | ??########?????# ##########%+###?????????????????? | | ??##??#??????### #?#?# [% #?????????????????? | | ????#??#?????#?# #?#?## #?????#???????????? | | ?????????##???## #????# !! #???????#?????????? | | ??????????#????# #????# !! #?????????????????? | | "?#???###??????# ##???# !! #? ???????????????? | | ??????#??????#?# ##???# = #?????????????????? | | "???#?????????#? ?????# %!* #?????????????????? | | ???????????#???? #?#??# [%*! #?????????????????? | | ???????????????? ?????#[%@%k= #?????????????????? | | ?#?????????????? ?????####Y#####?????????????????? | | ???????????????# ???????# ????????????????????? | | ??????????????? ????##?# ??????????????????? | | ????????????#??? ??? ? ? ????????????????? | | ???????????????????????###+##### ??????????????? | | ?????????????????????????????????#/#?????????????? | | ?????????????????#????????????????? ????????????? | | ????????????????????????????????????? ??????????? | | ??????????????????????????????????????"??????????? | | ?????????????????????????????????????????????????? | | ?????????????????????????????????????????????????? | | ?????????????????????????????????????????????????? | | ?????????????????????#???????????????????????????? | | ?????????????????????????????????????????????????? | | ?????????????????????????????????????????????????? | | ?????????????????????????????????????????????????? | | ?????????????????????????????????????????????????? | | ?????????????????????????????????????????????????? | | ?????????????????????????????????????????????????? | | ?????????????????????????????????????????????????? | | ?????????????????????????????????????????????????? | | ?????????????????????????????????????????????????? | | ?????????????????????????????????????????????????? | | ?????????????????????????????????????????????????? | +----------------------------------------------------+ Best States ------------- Heat Dissipation 28 Energy Generation 10 Energy Capacity 250 Matter Stores 300 Matter Capacity 300 Sight Range 16 Terrain Scan Range 16 Terrain Scan Density 10 Evasion (%) 53 Item Schematics ----------------- None Robot Schematics ------------------ None Fabricated ------------ Nothing Repaired ---------- Nothing Studied --------- Rocket Launcher | -9/Materials | Hacked Assault Rifle | -9/Materials | Hacked Sml. Laser | -9/Materials | Hacked Alien Tech Used ----------------- None Achievements -------------- None Challenges ------------ None Game ------ Seed SystemPersonalInterface Manual? 0 Play Time 00:25:29 Cumulative 20.7 hours Start 2025.11.18 @ 21:06:01 End 2025.11.18 @ 21:31:05 Sessions 1 Manual Loads 0 Difficulty Rogue Special Mode None Game No. 21 Rogue 21 Adventurer 0 Explorer 0 Win Type - Total 0 Types 0/0/0/0/0/0/0/0/0/0 Lore% 11 Gallery% 14 Achievement% 14 Wizard Run 0 Options --------- Layout 1 ASCII 0 Keyboard 0 Movement Mouse Keybinds 0 Fullscreen 2 Font 48/Smallcaps Map View 50x35 Zoom Use 0% Tactical HUD 1 Map Filters NONE Filters NONE Steam 1 RUN: 7221bd70-85e3-4b90-b6a8-82d20cf128a8